bitfinex/quotes_ETHUSD_20241001
["timestamp","ask_amount","ask_price","bid_price","bid_amount"]
[1727747523092,3.80677,2626.9,2626.7,0.05558198]
[1727747523852,3.80677,2626.9,2626.6,0.8177]
[1727747524272,3.80677,2626.9,2626.7,0.05558198]
[1727747524273,3.80693,2626.8,2626.7,0.05558198]
[1727747524473,3.80677,2626.9,2626.7,0.05558198]
[1727747524669,3.80677,2626.9,2626.6,0.8177]
[1727747525006,3.80704,2626.8,2626.6,0.8177]
[1727747525171,3.80704,2626.8,2626.7,0.05558198]
[1727747525366,3.80677,2626.9,2626.7,0.05558198]
[1727747525889,3.80677,2626.9,2626.6,0.8177]
[1727747526090,3.80677,2626.9,2626.8,0.05557797]
[1727747526269,3.80677,2626.9,2626.6,0.8177]
[1727747526466,3.80677,2626.9,2626.8,0.05557797]
[1727747526695,3.80677,2626.9,2626.6,0.8177]
[1727747526895,3.80677,2626.9,2626.8,0.05557797]
[1727747527057,3.80677,2626.9,2626.6,0.8177]
[1727747527258,3.80677,2626.9,2626.8,0.05557797]
[1727747527563,3.80656,2627.1,2626.6,0.8177]
[1727747527899,3.80671,2627.0,2626.7,0.05558198]
[1727747528566,3.80671,2627.0,2626.2,1.63101913]
[1727747528567,3.80778,2626.2,2625.5,3.80877]
[1727747528772,4.62038,2626.2,2625.4,3.80889]
[1727747529113,4.62038,2626.2,2625.5,4.35274091]
[1727747529262,3.80807,2626.0,2625.5,0.54399091]
[1727747530074,4.62038,2626.2,2625.5,0.54399091]
[1727747530259,8.42828,2626.2,2625.5,4.35277091]
[1727747530465,3.80795,2626.1,2625.6,1.36616209]
[1727747531510,3.80778,2626.2,2625.7,0.8014]
[1727747532003,3.80815,2626.0,2625.7,0.8014]
[1727747532163,3.80829,2625.9,2625.4,0.8014]
[1727747532364,3.80829,2625.9,2625.5,0.55]
[1727747532972,3.80848,2625.8,2625.5,0.55]
[1727747533178,3.80841,2625.8,2625.4,0.8014]
[1727747533505,3.80859,2625.7,2625.1,4.59078]
[1727747533712,7.61688,2625.8,2625.1,5.7688506]
[1727747533912,3.80841,2625.8,2625.1,5.7688506]
[1727747534127,3.80853,2625.7,2625.1,5.7688506]
[1727747534313,3.80853,2625.7,2625.2,0.82018215]
[1727747534480,3.80841,2625.8,2625.3,0.55]
[1727747534679,3.80853,2625.7,2625.3,0.55]
[1727747536105,3.80853,2625.7,2625.4,0.04393491]
[1727747536301,3.80841,2625.8,2625.4,0.04393491]
[1727747536611,7.61687,2625.8,2625.4,0.04393491]
[1727747536929,3.80841,2625.8,2625.4,0.04393491]
[1727747537087,3.80815,2626.0,2625.5,0.8298]
[1727747537429,7.61632,2626.0,2625.6,0.04392687]
[1727747537626,3.80822,2625.9,2625.6,0.04392687]
[1727747537811,3.80815,2626.0,2625.6,0.04392687]
[1727747538126,7.61632,2626.0,2625.6,0.04392687]
[1727747538518,3.80815,2626.0,2625.6,0.04392687]
[1727747539833,3.80784,2626.2,2625.6,0.04392687]
[1727747540130,3.80808,2626.0,2625.6,0.04392687]
[1727747545464,4.62157012,2626.2,2625.6,0.04392687]
[1727747545465,3.8085,2625.7,2625.6,0.04392687]
[1727747545668,3.80847,2625.8,2625.6,0.04392687]
[1727747545873,7.61697,2625.8,2625.6,0.04392687]
[1727747546567,3.80847,2625.8,2625.6,0.04392687]
[1727747546772,7.61694,2625.8,2625.6,0.04392687]
[1727747546925,3.80845,2625.8,2625.6,0.04392687]
[1727747548374,7.61689,2625.8,2625.6,0.04392687]
[1727747548528,3.80844,2625.8,2625.6,0.04392687]
[1727747549271,4.61074,2625.8,2625.6,0.04392687]
[1727747549434,4.269574,2625.7,2625.3,0.7671]
[1727747549633,3.80866,2625.6,2625.3,0.7671]
[1727747549866,3.80866,2625.6,2625.4,0.04392541]
[1727747550163,4.61074,2625.8,2625.4,0.04392541]
[1727747550366,3.80844,2625.8,2625.4,0.04392541]
[1727747551969,3.80816,2626.0,2625.4,0.04392541]
[1727747552130,3.80831,2625.9,2625.4,0.04392541]
[1727747552768,3.80831,2625.9,2625.4,3.85285541]
[1727747553138,3.80831,2625.9,2625.4,0.04392541]
[1727747554265,4.70296513,2626.0,2625.4,0.04392541]
[1727747554457,4.70296513,2626.0,2625.5,0.7699]
[1727747554775,4.70296513,2626.0,2625.5,0.8138925]
[1727747555734,3.80787,2626.2,2625.6,0.55]
[1727747555934,3.80787,2626.2,2625.7,4.5784]
[1727747556282,3.80787,2626.2,2625.7,0.81388446]
[1727747556283,3.80805,2626.1,2625.7,0.81388446]
[1727747556433,3.8081,2626.0,2625.7,0.81388446]
[1727747558740,3.80801,2626.1,2625.7,0.81388446]
[1727747559761,3.80809,2626.0,2625.7,0.81388446]
[1727747560874,3.80836,2625.8,2625.7,0.04398446]
[1727747561076,3.80836,2625.8,2625.4,0.7676]
[1727747561382,3.80836,2625.8,2625.7,0.04394181]
[1727747561580,4.81314632,2625.8,2625.4,0.7676]
[1727747562042,4.81314632,2625.8,2625.5,0.04394984]
[1727747565981,3.80853,2625.7,2625.5,0.04394984]
[1727747567984,3.80822,2625.9,2625.5,0.04394984]
[1727747569795,3.8081,2626.0,2625.5,0.04394984]
[1727747569949,7.61602,2626.1,2625.6,0.7936]
[1727747570286,3.80798,2626.1,2625.6,0.83767379]
[1727747570494,7.616,2626.1,2625.6,0.83767379]
[1727747570652,3.80798,2626.1,2625.6,0.83767379]
[1727747570851,7.616,2626.1,2625.6,0.83767379]
[1727747571051,3.80798,2626.1,2625.6,0.83767379]
[1727747571452,3.80807,2626.0,2625.6,0.83767379]
[1727747571791,3.80798,2626.1,2625.6,0.83767379]
[1727747571950,7.61656,2625.9,2625.6,0.83767379]
[1727747572286,3.80823,2625.9,2625.6,0.83767379]
[1727747574855,3.80823,2625.9,2625.6,0.04407379]
[1727747575055,3.80823,2625.9,2625.5,0.55]
[1727747575374,3.80823,2625.9,2625.6,0.04407379]
[1727747579478,3.8085,2625.7,2625.6,0.04407379]
[1727747579856,3.8085,2625.7,2625.4,0.8239]
[1727747580191,3.8085,2625.7,2625.5,0.04403988]
[1727747580495,3.80836,2625.8,2625.5,0.04403988]
[1727747580790,1.02204673,2625.8,2625.5,0.04403988]
[1727747580953,4.83048673,2625.8,2625.5,0.04403988]
[1727747581887,3.80855,2625.7,2625.5,0.04403988]
[1727747582334,6.23073318,2625.6,2625.5,0.04403988]
[1727747582651,3.80923,2625.2,2624.9,0.8239]
[1727747583002,1.63328318,2625.3,2625.0,0.04117666]
[1727747583155,0.7517,2625.2,2625.0,0.04117666]
[1727747583359,0.23849832,2625.1,2625.0,0.04117666]
[1727747583580,4.04786832,2625.1,2624.8,0.0349645]
[1727747583785,3.80956,2625.0,2624.8,0.0349645]
[1727747584293,5.6811515,2625.1,2624.8,0.0349645]
[1727747585258,0.23849832,2625.1,2624.8,0.0349645]
[1727747585463,2.39568318,2625.5,2624.8,0.0349645]
[1727747585758,3.80906,2625.4,2624.9,0.7879]
[1727747586096,2.39568318,2625.5,2624.9,4.59756]
[1727747586097,6.20449318,2625.5,2624.9,4.59756]
[1727747586263,0.7624,2625.5,2624.9,4.59756]
[1727747586593,4.57128,2625.5,2624.9,0.7879]
[1727747586795,0.837999,2625.4,2624.9,0.7879]
[1727747588789,0.837999,2625.4,2624.9,4.59755]
[1727747588992,3.80817,2626.0,2625.3,0.7551]
[1727747589159,0.7607,2626.1,2625.4,1.63328318]
[1727747589365,11.15783,2626.2,2625.7,0.7551]
[1727747589605,1.115783,2626.1,2625.7,0.7551]
[1727747592513,11.15786,2626.2,2625.7,0.7551]
[1727747592800,3.80794,2626.1,2625.7,0.7551]
[1727747594107,3.80808,2626.0,2625.7,0.7551]
[1727747594612,3.80809,2626.0,2625.5,0.55]
[1727747595459,3.80796,2626.1,2625.5,0.55]
[1727747595707,7.61598,2626.1,2625.5,4.35876]
[1727747595873,3.80811,2626.0,2625.6,0.04040346]
[1727747596075,7.61599,2626.1,2625.6,0.04040346]
[1727747596400,3.80817,2626.0,2625.6,0.04040346]
[1727747597401,3.80797,2626.1,2625.6,0.04040346]
[1727747597560,4.64561,2626.1,2625.6,0.04040346]
[1727747598175,3.80797,2626.1,2625.6,0.04040346]
[1727747599414,3.8081,2626.0,2625.6,0.04040346]
[1727747599608,7.61602,2626.1,2625.6,0.04040346]
[1727747599767,3.80797,2626.1,2625.6,0.04040346]
[1727747600104,7.61601,2626.1,2625.6,0.04040346]
[1727747600265,4.645641,2626.1,2625.6,0.04040346]
[1727747603403,4.645641,2626.1,2625.7,0.7684]
[1727747603766,4.645641,2626.1,2625.8,0.03868584]
[1727747604207,4.645641,2626.1,2625.7,0.7684]
[1727747604506,3.80797,2626.1,2625.8,0.03868584]
[1727747604710,3.80797,2626.1,2625.7,0.7684]
[1727747605014,4.56841,2626.3,2625.8,0.03868584]
[1727747605015,3.80771,2626.3,2625.8,0.03868584]
[1727747605178,3.80771,2626.3,2625.8,3.84701584]
[1727747605378,3.80771,2626.3,2625.8,3.80833]
[1727747605602,3.80771,2626.3,2625.9,0.03868182]
[1727747606102,3.80743,2626.5,2626.0,0.7777]
[1727747606308,3.80743,2626.5,2626.1,0.03867379]
[1727747606309,3.80753,2626.4,2626.1,0.03867379]
[1727747607274,3.80743,2626.5,2626.1,0.03867379]
[1727747608774,3.80764,2626.3,2626.1,0.03867379]
[1727747609366,7.61491,2626.5,2626.1,0.03867379]
[1727747609970,3.80743,2626.5,2626.1,0.03867379]
[1727747610171,3.8076,2626.4,2626.1,0.03867379]
[1727747610575,3.80765,2626.3,2626.1,0.03867379]
[1727747610815,7.61491,2626.5,2626.1,0.03867379]
[1727747611017,3.80751,2626.4,2626.1,0.03867379]
[1727747612316,7.61489,2626.5,2626.1,0.03867379]
[1727747612517,3.80749,2626.4,2626.1,0.03867379]
[1727747613017,0.8089,2626.8,2626.1,0.03867379]
[1727747613018,3.80716,2626.7,2626.1,0.03867379]
[1727747613315,3.80734,2626.5,2626.1,0.03867379]
[1727747613525,3.80721,2626.6,2626.2,0.7984]
[1727747613687,3.80735,2626.5,2626.2,0.7984]
[1727747613896,3.80735,2626.5,2626.3,0.03804148]
[1727747614107,3.80735,2626.5,2626.2,0.7984]
[1727747614279,3.80735,2626.5,2626.3,0.03804148]
[1727747614484,3.80735,2626.5,2626.2,0.7984]
[1727747614709,7.61478,2626.5,2626.3,0.03804148]
[1727747614922,3.80735,2626.5,2626.2,0.7984]
[1727747615216,3.8075,2626.4,2626.2,0.7984]
[1727747615424,3.80735,2626.5,2626.2,0.7984]
[1727747616111,7.61482,2626.5,2626.2,0.7984]
[1727747616318,3.80758,2626.4,2626.2,0.7984]
[1727747616817,3.80758,2626.4,2625.5,4.59838]
[1727747616818,3.80807,2626.0,2625.5,4.59838]
[1727747618434,3.80807,2626.0,2625.6,0.55]
[1727747619729,3.80807,2626.0,2625.6,4.35865]
[1727747620128,3.80779,2626.2,2625.6,4.35865]
[1727747620288,7.61565,2626.2,2625.7,0.7669]
[1727747620504,8.5339743,2626.2,2625.7,0.7669]
[1727747621008,4.7261143,2626.2,2625.7,0.7669]
[1727747621203,4.7261143,2626.2,2625.7,4.57538]
[1727747621428,3.808,2626.1,2625.7,0.7669]
[1727747623242,3.8081,2626.0,2625.7,0.7669]
[1727747623451,0.76161,2625.9,2625.7,0.7669]
[1727747623743,4.5699,2625.9,2625.5,0.7513]
[1727747623954,3.80839,2625.8,2625.5,0.7513]
[1727747625229,1.53311,2625.9,2625.5,0.7513]
[1727747625827,3.53823358,2625.7,2624.8,7.6543645]
[1727747626165,3.8088,2625.5,2624.9,0.8029]
[1727747626320,3.80904,2625.4,2624.9,0.8413382]
[1727747626525,1.11560736,2625.4,2624.9,0.8413382]
[1727747626824,4.58785,2625.7,2624.9,0.8413382]
[1727747627158,3.80896,2625.4,2624.9,0.8413382]
[1727747627464,3.80896,2625.4,2624.9,0.5913382]
[1727747627960,3.8089,2625.5,2624.9,0.5913382]
[1727747628262,3.80896,2625.4,2624.9,0.5913382]
[1727747628418,3.80936,2625.2,2624.9,0.0384382]
[1727747628618,3.80946,2625.1,2624.9,0.0384382]
[1727747628918,3.80946,2625.1,2624.8,0.0349645]
[1727747629135,7.61898,2625.1,2624.8,0.0349645]
[1727747629434,3.80946,2625.1,2624.8,0.0349645]
[1727747629637,4.654032,2625.1,2624.9,0.03487418]
[1727747632019,0.844572,2625.1,2624.9,0.03487418]
[1727747632538,4.654032,2625.1,2624.9,0.03487418]
[1727747633073,4.654032,2625.1,2624.8,0.0349645]
[1727747633292,4.654032,2625.1,2625.0,0.03487016]
[1727747633440,4.654032,2625.1,2624.9,0.03487418]
[1727747633757,4.654032,2625.1,2625.0,0.03487016]
[1727747634072,0.844572,2625.1,2624.8,0.0349645]
[1727747634259,4.653942,2625.1,2625.0,0.03531003]
[1727747634454,3.80924,2625.2,2624.9,0.03531405]
[1727747634640,3.80924,2625.2,2625.0,0.03531003]
[1727747635151,3.80924,2625.2,2625.1,0.03530601]
[1727747635338,3.80899,2625.4,2625.1,0.03530601]
[1727747636576,3.80899,2625.4,2625.0,0.8106]
[1727747637090,3.80899,2625.4,2625.1,0.03530601]
[1727747637270,8.45641,2625.4,2625.1,0.03530601]
[1727747637455,4.64736,2625.4,2625.1,0.03530601]
[1727747638340,3.80909,2625.3,2624.8,0.8467645]
[1727747638766,3.80909,2625.3,2624.9,0.03531405]
[1727747638978,8.45642,2625.4,2624.9,0.03531405]
[1727747640479,4.654732,2625.3,2624.9,0.03531405]
[1727747643969,0.845642,2625.3,2624.9,3.84494405]
[1727747644167,7.61771,2625.5,2624.9,3.84494405]
[1727747644392,3.80897,2625.4,2624.9,3.84494405]
[1727747644905,3.80881,2625.5,2625.0,4.62354]
[1727747645399,3.80881,2625.5,2625.1,0.03541014]
[1727747645703,4.64715,2625.5,2625.1,0.03541014]
[1727747645877,3.80902,2625.4,2625.1,0.03541014]
[1727747646593,3.80881,2625.5,2625.1,0.03541014]
[1727747646594,3.8091,2625.3,2625.1,0.03541014]
[1727747646759,7.61771,2625.5,2625.1,0.03541014]
[1727747646964,3.80902,2625.4,2625.1,0.03541014]
[1727747647160,4.55956,2625.3,2625.1,0.03541014]
[1727747647359,4.55956,2625.3,2624.8,0.8114645]
[1727747647606,3.80925,2625.2,2624.8,0.8114645]
[1727747647790,3.80925,2625.2,2624.9,0.03541818]
[1727747647992,3.80938,2625.1,2624.9,0.03541818]
[1727747648305,0.836903,2625.1,2624.9,0.03541818]
[1727747648664,3.80952,2625.0,2624.9,0.03541818]
[1727747649396,4.646283,2625.1,2624.9,0.03541818]
[1727747649766,3.80952,2625.0,2624.9,0.03541818]
[1727747649985,4.646283,2625.1,2624.9,0.03541818]
[1727747650197,3.80952,2625.0,2624.9,0.03541818]
[1727747651999,4.646283,2625.1,2624.9,0.03541818]
[1727747652514,8.455803,2625.1,2624.9,0.03541818]
[1727747652663,5.0841483,2625.0,2624.9,0.03541818]
[1727747653099,3.80966,2624.9,2624.8,0.0349645]
[1727747654409,3.80966,2624.9,2624.8,0.06957677]
[1727747655410,3.80966,2624.9,2624.8,0.0349645]
[1727747655706,4.78273113,2624.9,2624.8,0.0349645]
[1727747656573,4.78273113,2624.9,2624.8,0.06973294]
[1727747656801,4.78273113,2624.9,2624.8,0.0349645]
[1727747656985,4.78273113,2624.9,2624.8,0.06975661]
[1727747657305,4.78273113,2624.9,2624.8,0.0349645]
[1727747657471,4.78273113,2624.9,2624.8,0.06975661]
[1727747662119,5.60103113,2624.9,2624.8,0.06975661]
[1727747662819,5.60103113,2624.9,2624.8,0.06861325]
[1727747663318,5.60103113,2624.9,2624.8,0.0349645]
[1727747667883,4.78273113,2624.9,2624.8,0.0349645]
[1727747668079,3.80966,2624.9,2624.8,0.0349645]
[1727747670942,0.7537,2625.2,2624.8,0.0349645]
[1727747670943,3.8094,2625.1,2624.8,0.0349645]
[1727747671107,3.80929,2625.2,2624.8,0.0349645]
[1727747671427,3.80952,2625.0,2624.8,0.0349645]
[1727747673843,3.80929,2625.2,2624.9,0.8147]
[1727747674396,3.0,2625.6,2624.9,0.8147]
[1727747674397,3.0,2625.6,2624.9,1.28066145]
[1727747674509,7.35,2625.7,2624.9,0.8147]
[1727747674510,3.80907,2625.4,2624.9,0.8147]
[1727747674848,3.80889,2625.5,2624.9,4.62433]
[1727747675343,3.80894,2625.4,2624.9,0.8147]
[1727747675549,3.80894,2625.4,2624.9,1.44411857]
[1727747675745,7.61779,2625.5,2625.0,0.7665]
[1727747675908,3.80889,2625.5,2625.0,0.7665]
[1727747676103,7.61777,2625.5,2625.0,0.7665]
[1727747676944,3.80895,2625.4,2625.0,0.7665]
[1727747677441,3.80937,2625.1,2625.0,0.7665]
[1727747684424,3.80886,2625.5,2625.0,0.7665]
[1727747684613,3.8091,2625.3,2625.0,0.7665]
[1727747685749,3.80886,2625.5,2625.0,0.7665]
[1727747686053,3.80886,2625.5,2625.0,1.58923105]
[1727747686228,3.8091,2625.3,2625.0,1.58923105]
[1727747688925,3.80842,2625.8,2625.0,1.58923105]
[1727747689223,3.80909,2625.3,2625.0,0.7665]
[1727747692715,7.61776,2625.5,2625.0,0.7665]
[1727747692912,3.80882,2625.5,2625.1,1.354]
[1727747693150,3.80882,2625.5,2625.2,0.804]
[1727747703791,3.80858,2625.7,2625.2,0.804]
[1727747704282,3.80872,2625.6,2625.2,0.804]
[1727747705414,3.80858,2625.7,2625.2,0.804]
[1727747705715,3.80887,2625.5,2625.2,0.804]
[1727747708015,7.61607,2626.1,2625.5,0.7736]
[1727747708221,3.80803,2626.1,2625.8,1.63355843]
[1727747708523,3.80722,2626.6,2626.0,1.63355843]
[1727747708524,3.80744,2626.5,2626.0,1.63355843]
[1727747708814,3.80743,2626.5,2626.0,1.63355843]
[1727747708976,3.80724,2626.6,2626.1,0.7736]
[1727747710115,3.80724,2626.6,2626.1,2.40715843]
[1727747710616,3.80724,2626.6,2626.2,0.55]
[1727747710801,3.807,2626.8,2626.3,2.43385843]
[1727747711516,3.80713,2626.7,2626.3,0.8003]
[1727747712144,3.807,2626.8,2626.3,3.53585729]
[1727747712307,3.807,2626.8,2626.4,1.66511274]
[1727747712511,4.56957,2627.1,2626.5,4.32785729]
[1727747712512,3.80672,2627.0,2626.5,4.32785729]
[1727747712816,3.80684,2626.9,2626.5,0.792]
[1727747716630,3.80692,2626.8,2626.5,0.792]
[1727747717015,0.8145,2626.9,2626.2,0.55]
[1727747717215,0.8145,2626.9,2626.1,3.78418875]
[1727747717216,3.80751,2626.4,2626.1,0.8008]
[1727747719676,7.61453,2626.6,2626.1,0.8008]
[1727747719964,3.8072,2626.6,2626.1,0.8008]
[1727747720149,3.80736,2626.5,2626.1,0.8008]
[1727747723161,4.62127,2626.9,2626.1,0.841684]
[1727747723329,3.80677,2626.9,2626.3,0.7539]
[1727747723534,3.80677,2626.9,2626.5,0.7539]
[1727747724367,7.61366,2626.9,2626.5,0.7539]
[1727747724527,3.807,2626.8,2626.5,0.7539]
[1727747732474,4.56526,2626.7,2626.2,3.80775]
[1727747732669,4.56526,2626.7,2626.1,4.56561]
[1727747732904,4.56526,2626.7,2626.1,8.37344]
[1727747733499,0.7582,2626.7,2626.2,3.8077]
[1727747734219,4.56527,2626.7,2626.2,3.8077]
[1727747735800,0.7582,2626.7,2626.3,3.80754]
[1727747736005,4.6323,2627.0,2626.4,0.83024642]
[1727747736304,4.6323,2627.0,2626.5,3.80733]
[1727747736623,3.80651,2627.1,2626.5,3.80725]
[1727747736932,3.80651,2627.1,2626.6,0.456135]
[1727747737338,0.8256,2627.2,2626.7,4.57315]
[1727747737497,4.63201,2627.2,2626.7,4.57315]
[1727747738210,3.80641,2627.2,2626.7,4.57315]
[1727747738429,11.15629,2627.3,2626.7,1.65747012]
[1727747738623,3.80649,2627.1,2626.7,1.65747012]
[1727747740538,3.80649,2627.1,2626.5,3.80726]
[1727747740744,4.62129,2627.0,2626.5,4.61906]
[1727747741060,3.80692,2626.8,2626.5,0.8118]
[1727747741255,3.80721,2626.6,2626.1,4.56963]
[1727747741553,7.61453,2626.6,2626.1,5.407409]
[1727747741758,3.80721,2626.6,2626.1,1.599579]
[1727747741919,3.8075,2626.4,2626.1,1.599579]
[1727747742119,3.8075,2626.4,2625.9,3.80808]
[1727747742120,3.8075,2626.4,2625.9,0.7897]
[1727747742433,4.28715729,2626.6,2625.7,0.7897]
[1727747742634,3.80789,2626.2,2625.7,0.7897]
[1727747742839,3.80793,2626.1,2625.7,0.7897]
[1727747743057,3.80789,2626.2,2625.7,0.7897]
[1727747743646,3.80789,2626.2,2625.7,5.438851]
[1727747743864,3.80755,2626.4,2625.7,5.438851]
[1727747743865,7.61516,2626.4,2625.7,5.438851]
[1727747744064,3.80766,2626.3,2625.7,5.438851]
[1727747745554,3.80755,2626.4,2625.8,7.6167]
[1727747745755,3.80755,2626.4,2625.8,3.80835]
[1727747745976,3.80755,2626.4,2625.9,3.8082]
[1727747746464,3.80755,2626.4,2625.8,8.1604931]
[1727747746853,3.80755,2626.4,2625.8,4.3521431]
[1727747747985,3.80755,2626.4,2625.8,8.1604031]
[1727747748149,3.80755,2626.4,2625.8,4.3521331]
[1727747748355,4.55866,2626.5,2625.9,4.32234331]
[1727747748765,3.80736,2626.5,2626.0,0.7614]
[1727747749873,3.80726,2626.6,2626.0,0.7614]
[1727747749874,7.61455,2626.6,2626.0,0.7614]
[1727747750584,3.80738,2626.5,2626.0,4.56942]
[1727747750769,3.80738,2626.5,2626.0,5.45860633]
[1727747751547,3.80738,2626.5,2626.0,1.65058633]
[1727747751891,3.80738,2626.5,2626.0,0.7614]
[1727747752361,3.80726,2626.6,2626.0,0.7614]
[1727747752362,3.80751,2626.4,2626.0,0.7614]
[1727747763007,5.43993374,2626.6,2626.0,4.56945]
[1727747763209,3.80735,2626.5,2626.0,4.56945]
[1727747763413,3.80735,2626.5,2626.0,5.45863733]
[1727747764319,3.80735,2626.5,2626.0,1.65058733]
[1727747764490,0.8276,2626.3,2625.9,0.51418331]
[1727747765563,3.80759,2626.4,2625.9,0.51418331]
[1727747765746,1.63267374,2626.2,2625.8,0.8094]
[1727747765945,0.806,2626.1,2625.5,3.80876]
[1727747766147,3.80816,2626.0,2625.6,0.7564]
[1727747766463,3.8085,2625.7,2625.3,0.7564]
[1727747766831,1.63267374,2625.8,2625.3,0.7564]
[1727747767050,5.44103374,2625.8,2625.3,1.212961]
[1727747767215,3.80824,2625.9,2625.3,5.021921]
[1727747767645,3.80824,2625.9,2625.4,3.80886]
[1727747768229,3.80824,2625.9,2625.5,0.7757]
[1727747768659,3.80807,2626.0,2625.5,4.58449]
[1727747768871,4.61401,2626.1,2625.6,0.458456]
[1727747769070,3.80819,2626.0,2625.6,0.458456]
[1727747769526,3.80819,2626.0,2625.5,0.7757]
[1727747770363,7.61607,2626.1,2625.5,4.5844]
[1727747770528,7.61604,2626.1,2625.5,4.5844]
[1727747771062,3.80801,2626.1,2625.5,0.7757]
[1727747771229,3.80809,2626.0,2625.5,1.2798111]
[1727747774473,0.8081,2626.2,2625.7,0.7728]
[1727747774474,3.80782,2626.2,2625.7,0.7728]
[1727747779158,3.80782,2626.2,2625.7,4.58129]
[1727747779341,3.80782,2626.2,2625.8,0.893985]
[1727747780148,3.80809,2626.0,2625.7,0.7728]
[1727747780776,3.80829,2625.9,2625.5,1.2656111]
[1727747782376,3.80829,2625.9,2625.5,0.7615]
[1727747783075,7.6166,2625.9,2625.5,0.7615]
[1727747783372,3.80829,2625.9,2625.5,0.7615]
[1727747788706,0.7737,2626.0,2625.5,4.57028]
[1727747788994,0.7737,2626.0,2625.5,0.7615]
[1727747789196,3.80821,2625.9,2625.5,0.7615]
[1727747789381,0.7737,2626.0,2625.5,4.57026]
[1727747789583,0.7737,2626.0,2625.5,5.8347121]
[1727747789974,4.58178,2626.0,2625.5,5.8347121]
[1727747790898,3.80808,2626.0,2625.5,5.8347121]
[1727747792011,4.58003,2626.5,2625.8,0.7618]
[1727747792314,3.80773,2626.3,2625.8,4.57007]
[1727747792767,5.44099467,2626.3,2625.8,4.57007]
[1727747792968,9.24871467,2626.3,2625.8,4.57007]
[1727747793994,5.44098467,2626.3,2625.8,4.57007]
[1727747794201,3.80758,2626.4,2625.8,1.599662]
[1727747794395,3.80758,2626.4,2625.8,0.7618]
[1727747794707,3.80758,2626.4,2625.9,3.80818]
[1727747796001,6.21331467,2626.5,2625.9,3.80818]
[1727747796333,6.21331467,2626.5,2625.8,0.7618]
[1727747796334,5.44090467,2626.3,2625.8,0.7618]
[1727747797435,9.24865467,2626.3,2625.8,0.7618]
[1727747797791,3.80783,2626.2,2625.8,0.7618]
[1727747799324,3.80783,2626.2,2625.9,0.457016]
[1727747799699,3.80805,2626.1,2625.8,0.7618]
[1727747800022,3.80843,2625.8,2625.4,0.7775]
[1727747800227,5.44178467,2625.7,2625.4,0.7775]
[1727747801334,1.63326467,2625.7,2625.4,0.7775]
[1727747802334,5.44181467,2625.7,2625.4,0.7775]
[1727747802559,1.63326467,2625.7,2625.4,0.7775]
[1727747804768,3.80843,2625.8,2625.4,0.7775]
[1727747806059,5.44178467,2625.7,2625.4,0.7775]
[1727747806282,1.63326467,2625.7,2625.4,0.7775]
[1727747807784,1.63326467,2625.7,2625.2,4.58193]
[1727747808081,1.63326467,2625.7,2625.2,5.421071]
[1727747808377,1.63326467,2625.7,2625.2,9.230211]
[1727747808894,5.44176467,2625.7,2625.2,0.7728]
[1727747809074,3.8088,2625.5,2625.2,0.7728]
[1727747809375,3.8088,2625.5,2624.9,3.0]
[1727747809376,3.80896,2625.4,2624.9,0.8256]
[1727747809678,9.25158467,2625.3,2624.9,0.8256]
[1727747809939,3.80932,2625.2,2624.9,0.8256]
[1727747810084,3.80939,2625.1,2624.8,0.0349645]
[1727747810295,6.22985467,2625.1,2624.8,0.0349645]
[1727747811067,2.42046467,2625.1,2624.8,0.0349645]
[1727747811267,0.7872,2625.1,2624.8,0.0349645]
[1727747815205,4.59659,2625.1,2624.8,0.0349645]
[1727747816107,0.7872,2625.1,2624.8,0.0349645]
[1727747816402,6.21256467,2625.3,2624.8,0.0349645]
[1727747817893,4.5793,2625.3,2624.8,0.0349645]
[1727747818613,3.8091,2625.3,2624.8,3.8447545]
[1727747819465,7.61828,2625.3,2624.8,3.8447545]
[1727747819807,3.8091,2625.3,2624.8,3.8447545]
[1727747820466,4.59634,2625.5,2624.9,3.80965]
[1727747820674,4.59634,2625.5,2625.0,0.8145]
[1727747821015,3.80908,2625.4,2625.0,0.8145]
[1727747821214,3.80911,2625.3,2625.0,0.8145]
[1727747823021,3.80898,2625.4,2625.0,0.8145]
[1727747823921,3.80885,2625.5,2625.0,1.3652177]
[1727747824091,3.80867,2625.6,2625.0,5.1747177]
[1727747824292,3.80889,2625.5,2625.0,5.1747177]
[1727747824626,3.80867,2625.6,2625.0,5.1747177]
[1727747824627,3.80867,2625.6,2625.0,5.1746577]
[1727747824826,3.8088,2625.5,2625.0,5.1746577]
[1727747825022,3.8088,2625.5,2625.1,0.51746577]
[1727747825525,7.61743,2625.6,2625.1,0.51746577]
[1727747825725,3.80867,2625.6,2625.1,0.51746577]
[1727747825887,7.61741,2625.6,2625.1,0.51746577]
[1727747826522,3.80867,2625.6,2625.1,0.51746577]
[1727747826689,7.61742,2625.6,2625.2,0.95015335]
[1727747827123,7.61742,2625.6,2625.0,4.62392]
[1727747827429,3.80867,2625.6,2625.0,4.62392]
[1727747827780,7.6174,2625.6,2625.0,4.62392]
[1727747827985,3.80881,2625.5,2625.0,4.62392]
[1727747828490,3.80867,2625.6,2625.1,3.80934]
[1727747828694,7.61743,2625.6,2625.2,0.8076]
[1727747828899,3.80883,2625.5,2625.2,0.8076]
[1727747829319,3.80867,2625.6,2625.2,0.8076]
[1727747829638,7.61745,2625.6,2625.2,0.8076]
[1727747829822,3.80867,2625.6,2625.2,0.8076]
[1727747830027,7.61742,2625.6,2625.2,0.8076]
[1727747830329,3.80867,2625.6,2625.2,1.3074044]
[1727747831302,9.25018467,2625.8,2625.2,5.1166144]
[1727747831531,5.44170467,2625.8,2625.2,5.1166144]
[1727747831734,9.25018467,2625.8,2625.2,5.1166144]
[1727747831995,3.80852,2625.7,2625.2,5.1166144]
[1727747832233,3.80852,2625.7,2625.3,0.51166144]
[1727747835242,3.80865,2625.6,2625.3,0.51166144]
[1727747835442,3.80865,2625.6,2625.2,4.61681]
[1727747835600,3.80865,2625.6,2625.2,0.8076]